{"text_format":"1","workbook":"xlsx","n_sheets":3,"sheets":["ФОРМА ЗАПОЛНЕНИЯ","ОПЛАТА ПО ШКОЛЕ EPIC-MOTION","КВИТАНЦИЯ ОБ ОПЛАТЕ"],"not_rendered":{"charts":0,"images":0,"macros":1,"external_links":0,"defined_names":2,"comments":0,"pivot_tables":0},"unopened":[],"bounds":{"document_bytes":16777216,"sheet_cells":100000,"rows_first":2000,"rows_last":500,"rows_between":2000,"halvings":0,"cell_chars":16384,"cell_head_chars":4096},"cells_cut":0,"cells_raw":0,"read":"whole","date_system":"1900"}

{"sheet":"ФОРМА ЗАПОЛНЕНИЯ","index":0,"n_rows":46,"n_cols":11,"rows_kept":46,"cut":false,"hidden":false,"merged":[[25,6,25,8],[25,10,25,12],[21,6,21,8],[21,10,21,12],[21,2,21,4],[4,4,5,14],[25,3,25,4],[27,3,27,4],[13,6,13,12],[15,6,15,12],[17,6,17,12],[19,6,19,12],[23,6,23,12],[27,6,27,12],[13,3,13,4],[15,3,15,4],[17,3,17,4],[19,3,19,4],[23,3,23,4],[11,3,11,4],[11,6,11,12]]}
[]
[]
[]
[]
[]
[]
[]
[]
[]
[]
[]
[null,null,null,"ШКОЛА"]
[]
[null,null,null,"Ф.И.О"]
[]
[null,null,null,"ИИН"]
[]
[null,null,null,"ВИД УРОКА"]
[]
[null,null,null,"ЦЕНА"]
[]
[null,null,"ЕД.ИЗМ. / КОЛ-ВО"]
[]
[null,null,null,"СУММА",null,null,{"$f":"K22*G20","v":0}]
[]
[null,null,null,"СКИДКА",null,null,null,null,null,null,{"$f":"G24*G26","v":0}]
[]
[null,null,null,"ВСЕГО ОПЛАЧЕНО",null,null,{"$f":"G24-K26","v":0}]
[]
[]
[]
[]
[]
[null,null,null,0,"УРОК",null,"ХОРЕОГРАФИЯ 1"]
[null,null,null,0.1,"МЕСЯЦ",null,"ХОРЕОГРАФИЯ 2",null,null,null,"VERBA"]
[null,null,null,0.2,"ГОД",null,"РИТМИКА 1",null,null,null,"EPIC-MOTION"]
[null,null,null,0.3,null,null,"РИТМИКА 2"]
[null,null,null,0.4,null,null,"ГОУГОУ"]
[null,null,null,0.5,null,null,"СТРИП ПЛАСТИКА"]
[null,null,null,null,null,null,"МОДЕЛЬНАЯ СТУДИЯ"]
[null,null,null,null,null,null,"АНГЛ.ЯЗ. 1"]
[null,null,null,null,null,null,"АНГЛ.ЯЗ. 4"]
[null,null,null,null,null,null,"АНГЛ.ЯЗ. 12"]
[null,null,null,null,null,null,"КАЗ.ЯЗ. 1"]
[null,null,null,null,null,null,"КАЗ.ЯЗ. 4"]
[null,null,null,null,null,null,"КАЗ.ЯЗ. 12"]

{"sheet":"ОПЛАТА ПО ШКОЛЕ EPIC-MOTION","index":1,"n_rows":4,"n_cols":12,"rows_kept":4,"cut":false,"hidden":false,"merged":[]}
[null,null,null,"ЖУРНАЛ ПО ОПЛАТЕ"]
[null,"№ П/П","Ф.И.О.","ИИН","ШКОЛА","ВИД УРОКА","ЦЕНА","КОЛ-ВО","СУММА","СКИДКИ","СУММА СКИДКИ","ВСЕГО ОПЛАЧЕНО"]
[null,{"$f":"ROW()-ROW($B$2)","v":1},123,null,null,null,null,null,{"$f":"Table1[ЦЕНА]*Table1[КОЛ-ВО]","v":0},null,{"$f":"Table1[СКИДКИ]*Table1[СУММА]","v":0},{"$f":"Table1[СУММА]-Table1[СУММА СКИДКИ]","v":0}]
[null,{"$f":"ROW()-ROW($B$2)","v":2},234,null,null,null,null,null,{"$f":"Table1[ЦЕНА]*Table1[КОЛ-ВО]","v":0},null,{"$f":"Table1[СКИДКИ]*Table1[СУММА]","v":0},{"$f":"Table1[СУММА]-Table1[СУММА СКИДКИ]","v":0}]

{"sheet":"КВИТАНЦИЯ ОБ ОПЛАТЕ","index":2,"n_rows":33,"n_cols":9,"rows_kept":33,"cut":false,"hidden":false,"merged":[[1,1,1,3],[1,6,1,8],[28,2,28,3],[2,2,2,3],[12,2,12,3],[2,7,2,8],[4,7,4,8],[10,7,10,8],[12,7,12,8],[14,2,14,3],[4,2,4,3],[10,2,10,3],[16,2,16,3],[18,2,18,3],[20,2,20,3],[22,2,22,3],[26,2,26,3]]}
[]
[null,"КВИТАНЦИЯ ОБ ОПЛАТЕ",null,null,null,null,"КВИТАНЦИЯ ОБ ОПЛАТЕ"]
[null,"НОМЕР СЧЕТА","ИЗ СПИСКА (№ П/П)",null,null,null,"НОМЕР СЧЕТА",{"$f":"C3","v":"ИЗ СПИСКА (№ П/П)"}]
[]
[null,"ДАТА",{"$f":"TODAY()","v":41513},null,null,null,"ДАТА",{"$f":"C5","v":41513}]
[]
[null,"УСЛУГОДАТЕЛЬ","ИП АККЕНЖЕЕВ Б.Т.",null,null,null,"УСЛУГОДАТЕЛЬ","ИП АККЕНЖЕЕВ Б.Т."]
[]
[null,"ИИН ","840316300518",null,null,null,"ИИН ","840316300518"]
[]
[null,"ШКОЛА",{"$f":"'ФОРМА ЗАПОЛНЕНИЯ'!G12:G12","v":0},null,null,null,"ШКОЛА",{"$f":"C11","v":0}]
[]
[null,"ПОЛУЧАТЕЛЬ УСЛУГ",{"$f":"'ФОРМА ЗАПОЛНЕНИЯ'!G14:G14","v":0},null,null,null,{"$f":"B13","v":"ПОЛУЧАТЕЛЬ УСЛУГ"},{"$f":"C13","v":0}]
[]
[null,"УСЛУГИ:",{"$f":"'ФОРМА ЗАПОЛНЕНИЯ'!G18:G18","v":0},null,null,null,"УСЛУГИ:",{"$f":"C15","v":0}]
[]
[null,"ОПЛАТА ЗА",{"$f":"'ФОРМА ЗАПОЛНЕНИЯ'!G22:G22","v":0},null,null,null,"ОПЛАТА ЗА",{"$f":"C17","v":0}]
[]
[null,"СТОИМОСТЬ",{"$f":"'ФОРМА ЗАПОЛНЕНИЯ'!G20:G20","v":0},null,null,null,"СТОИМОСТЬ",{"$f":"C19","v":0}]
[]
[null,"КОЛИЧЕСТВО",{"$f":"'ФОРМА ЗАПОЛНЕНИЯ'!K22:K22","v":0},null,null,null,"КОЛИЧЕСТВО",{"$f":"C21","v":0}]
[]
[null,"СУММА",{"$f":"'ФОРМА ЗАПОЛНЕНИЯ'!G24:G24","v":0},null,null,null,"СУММА",{"$f":"C23","v":0}]
[]
[null,"СКИДКА",{"$f":"'ФОРМА ЗАПОЛНЕНИЯ'!G26:G26","v":0},{"$f":"'ФОРМА ЗАПОЛНЕНИЯ'!K26:K26","v":0},null,null,"СКИДКА",{"$f":"C25","v":0},{"$f":"D25","v":0}]
[]
[null,"ИТОГО ОПЛАЧЕНО",{"$f":"'ФОРМА ЗАПОЛНЕНИЯ'!G28:G28","v":0},null,null,null,"ИТОГО ОПЛАЧЕНО",{"$f":"C27","v":0}]
[]
[null,"НДС","НЕ ОПЛАЧИВАЕТСЯ",null,null,null,"НДС",{"$f":"C29","v":"НЕ ОПЛАЧИВАЕТСЯ"}]
[]
[null,"КАССИР",null,null,null,null,"КАССИР"]
[]
[null,"РУКОВОДИТЕЛЬ",null,null,null,null,"РУКОВОДИТЕЛЬ"]